lending/lending_fUSD_20250808
["ID","MTS","AMOUNT","RATE_DAILY","PERIOD"]
[378022486,1754671834944,-498.26,0.00018394,2]
[378022487,1754671834953,-756.59,0.00018394,2]
[378022488,1754671834962,-677.84,0.00018394,2]
[378022489,1754671834996,-400.0,0.00018394,2]
[378022490,1754671835006,-400.0,0.00018394,2]
[378022491,1754671835018,-466.76483613,0.00018394,2]
[378022492,1754671835027,-429.59,0.00018394,2]
[378022493,1754671835036,-400.0,0.00018394,2]
[378022494,1754671835046,-189.85135628,0.00018394,2]
[378022495,1754671835088,-456.32,0.00018393,2]
[378022496,1754671835097,-210.14864372,0.00018394,2]
[378022497,1754671835106,-400.0,0.00018394,2]
[378022498,1754671835116,-557.92297919,0.00018394,2]
[378022499,1754671835133,-174.07702081,0.00018394,2]
[378022500,1754671835144,-400.0,0.00018394,2]
[378022501,1754671835379,-400.0,0.00018394,2]
[378022502,1754671835388,-400.0,0.00018394,2]
[378022503,1754671835398,-400.0,0.00018394,2]
[378022504,1754671835407,-400.0,0.00018394,2]
[378022505,1754671835421,-400.0,0.00018394,2]
[378022506,1754671835433,-400.0,0.00018394,2]
[378022507,1754671835442,-400.0,0.00018394,2]
[378022508,1754671835451,-400.0,0.00018394,2]
[378022509,1754671835461,-400.0,0.00018394,2]
[378022510,1754671835470,-584.34,0.00018394,2]
[378022511,1754671835480,-1057.59,0.00018394,2]
[378022512,1754671835489,-400.0,0.00018394,2]
[378022513,1754671835500,-400.0,0.00018394,2]
[378022514,1754671835510,-400.0,0.00018394,2]
[378022515,1754671835519,-400.0,0.00018394,2]
[378022516,1754671835529,-400.0,0.00018394,2]
[378022517,1754671835538,-715.52,0.00018394,2]
[378022518,1754671835548,-400.0,0.00018394,2]
[378022519,1754671835558,-400.0,0.00018394,2]
[378022520,1754671835567,-400.0,0.00018394,2]
[378022521,1754671835576,-400.0,0.00018394,2]
[378022522,1754671835586,-400.0,0.00018394,2]
[378022523,1754671835595,-400.0,0.00018394,2]
[378022524,1754671835605,-400.0,0.00018394,2]
[378022525,1754671835614,-400.0,0.00018394,2]
[378022526,1754671835623,-411.93,0.00018394,2]
[378022527,1754671835633,-431.45,0.00018394,2]
[378022528,1754671835642,-450.42,0.00018394,2]
[378022529,1754671835651,-400.0,0.00018394,2]
[378022530,1754671835661,-400.0,0.00018394,2]
[378022531,1754671835670,-400.0,0.00018394,2]
[378022532,1754671835679,-981.85,0.00018394,2]
[378022533,1754671835689,-400.0,0.00018394,2]
[378022534,1754671835698,-400.0,0.00018394,2]
[378022535,1754671835709,-698.73,0.00018394,2]
[378022536,1754671835719,-400.0,0.00018394,2]
[378022537,1754671835730,-400.0,0.00018394,2]
[378022538,1754671835739,-400.0,0.00018394,2]
[378022539,1754671835748,-508.91,0.00018394,2]
[378022540,1754671835758,-400.0,0.00018394,2]
[378022541,1754671835771,-400.0,0.00018394,2]
[378022542,1754671835792,-411.51,0.00018394,2]
[378022543,1754671835801,-410.46,0.00018394,2]
[378022544,1754671835811,-400.0,0.00018394,2]
[378022545,1754671835821,-400.0,0.00018394,2]
[378022546,1754671835830,-798.86,0.00018394,2]
[378022547,1754671835839,-559.18,0.00018394,2]
[378022548,1754671835850,-400.0,0.00018394,2]
[378022549,1754671835862,-400.0,0.00018394,2]
[378022550,1754671835873,-654.13,0.00018394,2]
[378022551,1754671835883,-479.91779269,0.00018394,2]
[378022552,1754671835892,-400.0,0.00018394,2]
[378022553,1754671835902,-400.0,0.00018394,2]
[378022554,1754671835911,-400.0,0.00018394,2]
[378022555,1754671835921,-400.0,0.00018394,2]
[378022556,1754671835931,-400.0,0.00018394,2]
[378022557,1754671835942,-400.0,0.00018394,2]
[378022558,1754671835951,-460.08,0.00018394,2]
[378022559,1754671835962,-400.0,0.00018394,2]
[378022560,1754671835974,-400.0,0.00018394,2]
[378022561,1754671835983,-400.0,0.00018394,2]
[378022562,1754671835994,-400.0,0.00018394,2]
[378022563,1754671836004,-400.0,0.00018394,2]
[378022564,1754671836014,-748.67,0.00018394,2]
[378022565,1754671836023,-400.0,0.00018394,2]
[378022566,1754671836033,-400.0,0.00018394,2]
[378022567,1754671836042,-400.0,0.00018394,2]
[378022568,1754671836052,-400.0,0.00018394,2]
[378022569,1754671836062,-400.0,0.00018394,2]
[378022570,1754671836071,-400.0,0.00018394,2]
[378022571,1754671836081,-400.0,0.00018394,2]
[378022572,1754671836090,-400.0,0.00018394,2]
[378022573,1754671836099,-804.92,0.00018394,2]
[378022574,1754671836108,-400.0,0.00018394,2]
[378022575,1754671836118,-400.0,0.00018394,2]
[378022576,1754671836127,-443.79,0.00018394,2]
[378022577,1754671836136,-671.41,0.00018394,2]
[378022578,1754671836147,-1286.56,0.00018394,2]
[378022579,1754671836156,-400.0,0.00018394,2]
[378022580,1754671836166,-400.0,0.00018394,2]
[378022581,1754671836175,-677.67,0.00018394,2]
[378022582,1754671836185,-400.0,0.00018394,2]
[378022583,1754671836194,-1029.41,0.00018394,2]
[378022584,1754671836204,-1066.68,0.00018394,2]
[378022585,1754671836214,-498.73,0.00018394,2]
[378022586,1754671836224,-990.92,0.00018394,2]
[378022587,1754671836233,-400.0,0.00018394,2]
[378022588,1754671836243,-690.51,0.00018394,2]
[378022589,1754671836252,-784.05,0.00018394,2]
[378022590,1754671836262,-400.0,0.00018394,2]
[378022591,1754671836273,-400.0,0.00018394,2]
[378022592,1754671836282,-400.0,0.00018394,2]
[378022593,1754671836292,-400.0,0.00018394,2]
[378022594,1754671836301,-400.0,0.00018394,2]
[378022595,1754671836311,-400.0,0.00018394,2]
[378022596,1754671836320,-400.0,0.00018394,2]
[378022597,1754671836330,-1321.72,0.00018394,2]
[378022598,1754671836339,-776.37,0.00018394,2]
[378022599,1754671836349,-400.0,0.00018394,2]
[378022600,1754671836359,-400.0,0.00018394,2]
[378022601,1754671836368,-400.0,0.00018394,2]
[378022602,1754671836378,-400.0,0.00018394,2]
[378022603,1754671836388,-1016.38,0.00018394,2]
[378022604,1754671836398,-400.0,0.00018394,2]
[378022605,1754671836408,-677.58,0.00018394,2]
[378022606,1754671836420,-400.0,0.00018394,2]
[378022607,1754671836430,-471.63,0.00018394,2]
[378022608,1754671836439,-400.0,0.00018394,2]
[378022609,1754671836449,-1005.41,0.00018394,2]
[378022610,1754671836458,-454.35,0.00018394,2]
[378022611,1754671836468,-400.0,0.00018394,2]
[378022612,1754671836478,-400.0,0.00018394,2]
[378022613,1754671836487,-963.21,0.00018394,2]
[378022614,1754671836497,-400.0,0.00018394,2]
[378022615,1754671836507,-400.0,0.00018394,2]
[378022616,1754671836518,-504.42,0.00018394,2]
[378022617,1754671836529,-508.28,0.00018394,2]
[378022618,1754671836538,-400.0,0.00018394,2]
[378022619,1754671836547,-400.0,0.00018394,2]
[378022620,1754671836556,-400.0,0.00018394,2]
[378022621,1754671836566,-655.98,0.00018394,2]
[378022622,1754671836576,-400.0,0.00018394,2]
[378022623,1754671836585,-400.0,0.00018394,2]
[378022624,1754671836595,-737.78,0.00018394,2]
[378022625,1754671836604,-400.0,0.00018394,2]
[378022626,1754671836614,-575.02,0.00018394,2]
[378022627,1754671836623,-566.69,0.00018394,2]
[378022628,1754671836632,-422.76,0.00018394,2]
[378022629,1754671836641,-400.0,0.00018394,2]
[378022630,1754671836650,-400.0,0.00018394,2]
[378022631,1754671836660,-137.4809263,0.00018394,2]
[378022632,1754671837103,-262.5190737,0.00018394,2]
[378022633,1754671837112,-125.4809263,0.00018394,2]
[378022635,1754671837975,-1888.0,0.00018393,2]
[378022636,1754671838029,-857.69,0.00018393,2]
[378022637,1754671838037,-454.23,0.00018393,2]
[378022638,1754671838045,-400.0,0.00018393,2]
[378022639,1754671838054,-1112.6090737,0.00018394,2]
[378022640,1754671838062,-3317.61,0.00018394,2]
[378022641,1754671838071,-400.0,0.00018394,2]
[378022642,1754671838079,-500.67,0.00018394,2]
[378022643,1754671838088,-1331.55,0.00018394,2]
[378022644,1754671838096,-400.0,0.00018394,2]
[378022645,1754671838104,-400.0,0.00018394,2]
[378022646,1754671838113,-400.0,0.00018394,2]
[378022647,1754671838120,-400.0,0.00018394,2]
[378022648,1754671838129,-400.0,0.00018394,2]
[378022649,1754671838136,-400.0,0.00018394,2]
[378022650,1754671838145,-400.0,0.00018394,2]
[378022651,1754671838152,-541.05968501,0.00018394,2]
[378022652,1754671838160,-1195.74,0.00018394,2]
[378022653,1754671838169,-400.0,0.00018394,2]
[378022654,1754671838177,-1103.66,0.00018394,2]
[378022655,1754671838185,-400.0,0.00018394,2]
[378022656,1754671838194,-400.0,0.00018394,2]
[378022657,1754671838203,-680.23,0.00018394,2]
[378022658,1754671838212,-400.0,0.00018394,2]
[378022659,1754671838220,-889.43,0.00018394,2]
[378022660,1754671838228,-400.0,0.00018394,2]
[378022661,1754671838237,-400.0,0.00018394,2]
[378022662,1754671838245,-400.0,0.00018394,2]
[378022663,1754671838254,-400.0,0.00018394,2]
[378022664,1754671838262,-449.21,0.00018394,2]
[378022665,1754671838272,-400.0,0.00018394,2]
[378022666,1754671838280,-1550.29,0.00018394,2]
[378022667,1754671838288,-1125.8,0.00018394,2]
[378022668,1754671838297,-400.0,0.00018394,2]
[378022669,1754671838306,-400.0,0.00018394,2]
[378022670,1754671838315,-984.27,0.00018394,2]
[378022671,1754671838323,-400.0,0.00018394,2]
[378022672,1754671838331,-400.0,0.00018394,2]
[378022673,1754671838339,-400.0,0.00018394,2]
[378022674,1754671838347,-1623.92,0.00018394,2]
[378022675,1754671838355,-477.71,0.00018394,2]
[378022676,1754671838365,-400.0,0.00018394,2]
[378022677,1754671838374,-400.0,0.00018394,2]
[378022678,1754671838383,-3525.28,0.00018394,2]
[378022679,1754671838391,-400.0,0.00018394,2]
[378022680,1754671838399,-400.0,0.00018394,2]
[378022681,1754671838407,-400.0,0.00018394,2]
[378022682,1754671838415,-400.0,0.00018394,2]
[378022683,1754671838426,-494.22,0.00018394,2]
[378022684,1754671838434,-400.0,0.00018394,2]
[378022685,1754671838442,-400.0,0.00018394,2]
[378022686,1754671838450,-400.0,0.00018394,2]
[378022687,1754671838459,-400.0,0.00018394,2]
[378022688,1754671838467,-400.0,0.00018394,2]
[378022689,1754671838474,-562.74,0.00018394,2]
[378022690,1754671838483,-400.0,0.00018394,2]
[378022691,1754671838493,-1774.3,0.00018394,2]
[378022692,1754671838501,-1221.96,0.00018394,2]
[378022693,1754671838510,-400.0,0.00018394,2]
[378022694,1754671838520,-481.9,0.00018394,2]
[378022695,1754671838528,-400.0,0.00018394,2]
[378022696,1754671838536,-400.0,0.00018394,2]
[378022697,1754671838544,-500.0,0.00018394,2]
[378022698,1754671838554,-400.0,0.00018394,2]
[378022699,1754671838563,-400.0,0.00018394,2]
[378022701,1754671838572,-921.21,0.00018394,2]
[378022703,1754671838581,-400.0,0.00018394,2]
[378022704,1754671838590,-400.0,0.00018394,2]
[378022706,1754671838599,-400.0,0.00018394,2]
[378022707,1754671838608,-400.0,0.00018394,2]
[378022709,1754671838617,-400.0,0.00018394,2]
[378022711,1754671838626,-400.0,0.00018394,2]
[378022712,1754671838635,-1029.39,0.00018394,2]
[378022714,1754671838645,-400.0,0.00018394,2]
[378022716,1754671838653,-3881.27,0.00018394,2]
[378022717,1754671838663,-400.0,0.00018394,2]
[378022720,1754671838671,-400.0,0.00018394,2]
[378022721,1754671838680,-400.0,0.00018394,2]
[378022723,1754671838690,-400.0,0.00018394,2]
[378022725,1754671838700,-708.72,0.00018394,2]
[378022727,1754671838708,-400.0,0.00018394,2]
[378022729,1754671838718,-675.17,0.00018394,2]
[378022731,1754671838727,-1073.84,0.00018394,2]
[378022733,1754671838736,-400.0,0.00018394,2]
[378022735,1754671838745,-400.0,0.00018394,2]
[378022737,1754671838754,-400.0,0.00018394,2]
[378022738,1754671838764,-992.08,0.00018394,2]
[378022739,1754671838776,-817.27,0.00018394,2]
[378022740,1754671838785,-1093.0,0.00018394,2]
[378022741,1754671838794,-415.17,0.00018394,2]
[378022742,1754671838803,-400.0,0.00018394,2]
[378022743,1754671838812,-1220.6,0.00018394,2]
[378022744,1754671838822,-400.0,0.00018394,2]
[378022745,1754671838831,-300.0,0.00018394,2]
[378022746,1754671838840,-358.89381241,0.00018394,2]
[378022747,1754671838849,-400.0,0.00018394,2]
[378022748,1754671838859,-1108.78,0.00018394,2]
[378022749,1754671838869,-249.1643867,0.00018394,2]
[378022750,1754671838880,-400.0,0.00018394,2]
[378022751,1754671838890,-733.82,0.00018394,2]
[378022752,1754671838900,-400.0,0.00018394,2]
[378022753,1754671838910,-411.11,0.00018394,2]
[378022754,1754671838920,-1505.5,0.00018394,2]
[378022755,1754671838931,-400.0,0.00018394,2]
[378022756,1754671838940,-400.0,0.00018394,2]
[378022757,1754671838951,-400.0,0.00018394,2]
[378022758,1754671838960,-400.0,0.00018394,2]
[378022759,1754671838971,-408.39,0.00018394,2]
[378022760,1754671838981,-650.93,0.00018394,2]
[378022761,1754671838991,-2663.93,0.00018394,2]
[378022762,1754671839002,-400.0,0.00018394,2]
[378022763,1754671839016,-400.0,0.00018394,2]
[378022764,1754671839026,-400.0,0.00018394,2]
[378022765,1754671839036,-400.0,0.00018394,2]
[378022766,1754671839046,-400.0,0.00018394,2]
[378022767,1754671839056,-400.0,0.00018394,2]
[378022768,1754671839066,-478.61,0.00018394,2]
[378022769,1754671839076,-400.0,0.00018394,2]
[378022770,1754671839086,-400.0,0.00018394,2]
[378022771,1754671839097,-424.84,0.00018394,2]
[378022772,1754671839107,-400.0,0.00018394,2]
[378022773,1754671839118,-687.43,0.00018394,2]
[378022774,1754671839128,-1233.04,0.00018394,2]
[378022775,1754671839138,-494.3,0.00018394,2]
[378022776,1754671839148,-400.0,0.00018394,2]
[378022777,1754671839158,-416.18,0.00018394,2]
[378022778,1754671839168,-2704.27,0.00018394,2]
[378022779,1754671839178,-400.0,0.00018394,2]
[378022780,1754671839188,-1517.24,0.00018394,2]
[378022781,1754671839199,-400.0,0.00018394,2]
[378022782,1754671839209,-529.09,0.00018394,2]
[378022783,1754671839220,-400.0,0.00018394,2]
[378022784,1754671839231,-400.0,0.00018394,2]
[378022785,1754671839241,-485.44,0.00018394,2]
[378022786,1754671839251,-400.0,0.00018394,2]
[378022787,1754671839262,-760.97,0.00018394,2]
[378022788,1754671839272,-400.0,0.00018394,2]
[378022789,1754671839282,-410.36,0.00018394,2]
[378022790,1754671839293,-1241.53,0.00018394,2]
[378022791,1754671839303,-1098.29,0.00018394,2]
[378022792,1754671839313,-997.24,0.00018394,2]
[378022793,1754671839323,-211.13338352,0.00018394,2]
[378022794,1754671839333,-844.22,0.00018394,2]
[378022795,1754671839344,-787.40786978,0.00018394,2]
[378022796,1754671839380,-571.43,0.00018394,2]
[378022797,1754671839963,-400.0,0.00018393,2]
[378022798,1754671839974,-464.06213022,0.00018394,2]
[378022799,1754671839984,-400.0,0.00018394,2]
[378022800,1754671839995,-400.0,0.00018394,2]
[378022801,1754671840005,-447.01,0.00018394,2]
[378022802,1754671840015,-400.0,0.00018394,2]
[378022803,1754671840025,-400.0,0.00018394,2]
[378022804,1754671840035,-400.0,0.00018394,2]
[378022805,1754671840045,-400.0,0.00018394,2]
[378022806,1754671840055,-257.12786978,0.00018394,2]
[378022807,1754671840179,-142.87213022,0.00018394,2]
[378022808,1754671840194,-790.32,0.00018394,2]
[378022809,1754671840204,-582.1,0.00018394,2]
[378022810,1754671840215,-400.0,0.00018394,2]
[378022811,1754671840225,-742.83,0.00018394,2]
[378022812,1754671840236,-547.91,0.00018394,2]
[378022813,1754671840246,-400.0,0.00018394,2]
[378022814,1754671840256,-1488.19,0.00018394,2]
[378022815,1754671840267,-460.64,0.00018394,2]
[378022816,1754671840278,-958.9,0.00018394,2]
[378022817,1754671840288,-4304.3,0.00018394,2]
[378022818,1754671840298,-680.51,0.00018394,2]
[378022819,1754671840309,-446.92,0.00018394,2]
[378022820,1754671840319,-400.0,0.00018394,2]
[378022821,1754671840331,-406.96,0.00018394,2]
[378022822,1754671840341,-400.0,0.00018394,2]
[378022823,1754671840353,-531.8,0.00018394,2]
[378022824,1754671840363,-519.36,0.00018394,2]
[378022825,1754671840373,-847.2,0.00018394,2]
[378022826,1754671840385,-408.54,0.00018394,2]
[378022827,1754671840396,-400.0,0.00018394,2]
[378022828,1754671840409,-506.8770371,0.00018394,2]
[378022829,1754671840422,-2840.0,0.00018394,2]
[378022830,1754671840433,-790.05,0.00018394,2]
[378022831,1754671840448,-400.0,0.00018394,2]
[378022832,1754671840462,-400.0,0.00018394,2]
[378022833,1754671840476,-1721.99443245,0.00018394,2]
[378022843,1754671842955,-552.57,0.00018393,2]
[378022844,1754671842968,-50.35556755,0.00018394,2]
[378022845,1754671842980,-408.69,0.00018394,2]
[378022846,1754671842991,-400.0,0.00018394,2]
[378022847,1754671843004,-536.29956245,0.00018394,2]
[378022848,1754671843113,-117.86043755,0.00018394,2]
[378022849,1754671843125,-875.27,0.00018394,2]
[378022850,1754671843137,-751.32956245,0.00018394,2]
[378022876,1754671846053,-400.0,0.00018393,2]
[378022877,1754671846065,-1454.02,0.00018393,2]
[378022878,1754671846078,-846.41,0.00018393,2]
[378022879,1754671846090,-1300.79043755,0.00018394,2]
[378022880,1754671846102,-400.0,0.00018394,2]
[378022881,1754671846114,-1169.23410213,0.00018394,2]
[378022882,1754671846260,-215.89589787,0.00018394,2]
[378022883,1754671846272,-400.0,0.00018394,2]
[378022884,1754671846284,-482.9,0.00018394,2]
[378022885,1754671846296,-1739.73,0.00018394,2]
[378022886,1754671846308,-400.0,0.00018394,2]
[378022887,1754671846319,-843.31,0.00018394,2]
[378022888,1754671846331,-400.0,0.00018394,2]
[378022889,1754671846343,-400.0,0.00018394,2]
[378022890,1754671846355,-400.0,0.00018394,2]
[378022891,1754671846367,-400.0,0.00018394,2]
[378022892,1754671846378,-400.0,0.00018394,2]
[378022893,1754671846389,-400.0,0.00018394,2]
[378022894,1754671846401,-919.77,0.00018394,2]
[378022895,1754671846412,-400.0,0.00018394,2]
[378022896,1754671846429,-400.0,0.00018394,2]
[378022897,1754671846440,-1215.25,0.00018394,2]
[378022898,1754671846453,-1484.03,0.00018394,2]
[378022899,1754671846465,-400.0,0.00018394,2]
[378022901,1754671846479,-1243.44,0.00018394,2]
[378022903,1754671846490,-400.0,0.00018394,2]
[378022905,1754671846503,-4433.17,0.00018394,2]
[378022907,1754671846514,-458.12,0.00018394,2]
[378022910,1754671846525,-454.66,0.00018394,2]
[378022912,1754671846538,-400.0,0.00018394,2]
[378022914,1754671846549,-736.84,0.00018394,2]
[378022916,1754671846560,-400.0,0.00018394,2]
[378022919,1754671846572,-400.0,0.00018394,2]
[378022921,1754671846584,-477.95,0.00018394,2]
[378022923,1754671846596,-400.0,0.00018394,2]
[378022925,1754671846608,-400.0,0.00018394,2]
[378022927,1754671846620,-400.0,0.00018394,2]
[378022930,1754671846632,-429.88,0.00018394,2]
[378022931,1754671846644,-3589.22,0.00018394,2]
[378022932,1754671846655,-400.0,0.00018394,2]
[378022933,1754671846667,-400.0,0.00018394,2]
[378022934,1754671846678,-1290.87,0.00018394,2]
[378022935,1754671846690,-400.0,0.00018394,2]
[378022936,1754671846701,-400.0,0.00018394,2]
[378022937,1754671846713,-400.0,0.00018394,2]
[378022938,1754671846724,-400.0,0.00018394,2]
[378022939,1754671846736,-400.0,0.00018394,2]
[378022940,1754671846747,-475.38,0.00018394,2]
[378022941,1754671846759,-1107.79,0.00018394,2]
[378022942,1754671846771,-1161.75,0.00018394,2]
[378022943,1754671846787,-492.56,0.00018394,2]
[378022944,1754671846799,-827.46,0.00018394,2]
[378022945,1754671846810,-540.67,0.00018394,2]
[378022946,1754671846822,-447.13,0.00018394,2]
[378022947,1754671846833,-3204.56,0.00018394,2]
[378022948,1754671846845,-400.0,0.00018394,2]
[378022949,1754671846856,-595.48,0.00018394,2]
[378022950,1754671846867,-1017.46,0.00018394,2]
[378022951,1754671846879,-400.0,0.00018394,2]
[378022952,1754671846890,-1972.26,0.00018394,2]
[378022953,1754671846902,-400.0,0.00018394,2]
[378022954,1754671846914,-400.0,0.00018394,2]
[378022955,1754671846926,-400.0,0.00018394,2]
[378022956,1754671846938,-400.0,0.00018394,2]
[378022957,1754671846949,-400.0,0.00018394,2]
[378022958,1754671846960,-507.54,0.00018394,2]
[378022959,1754671846972,-400.0,0.00018394,2]
[378022960,1754671846983,-1226.41,0.00018394,2]
[378022961,1754671846994,-400.0,0.00018394,2]
[378022962,1754671847006,-549.85,0.00018394,2]
[378022963,1754671847017,-400.0,0.00018394,2]
[378022964,1754671847030,-306.12245091,0.00018394,2]
[378022965,1754671847042,-400.0,0.00018394,2]
[378022966,1754671847054,-805.33,0.00018394,2]
[378022967,1754671847065,-1372.06,0.00018394,2]
[378022968,1754671847077,-4447.42,0.00018394,2]
[378022969,1754671847089,-400.0,0.00018394,2]
[378022970,1754671847101,-400.0,0.00018394,2]
[378022971,1754671847113,-400.0,0.00018394,2]
[378022972,1754671847124,-882.73165121,0.00018394,2]
[378022975,1754672031158,382.94,0.00015068,2]
[378022976,1754672031387,382.94,0.00016641,2]
[378022979,1754672113780,666.0,0.00017507,3]
[378022980,1754672227050,168.49950217,0.00030137,120]
[378022981,1754672288534,259.44,0.00017446,2]
[378022983,1754672359810,785.92,0.00017415,2]
[378022986,1754672425064,1000.0,0.00017402,2]
[378022987,1754672425935,150.0,0.000153,2]
[378022988,1754672426378,150.0,0.0001648,2]
[378022989,1754672427126,150.0,0.0001767,2]
[378022990,1754672431880,1168.03,0.00017407,2]
[378022991,1754672447951,1026.66578175,0.000301,120]
[378022992,1754672580434,282.6,0.00017386,2]
[378022993,1754672625581,518.0,0.00017785,2]
[378022994,1754672660725,191.43,0.00013699,2]
[378022997,1754672706201,250.0,0.0001785,2]
[378022998,1754672799656,1144.65,0.00017374,2]
[378023002,1754672947026,150.0,0.000153,2]
[378023003,1754672947410,150.0,0.0001648,2]
[378023004,1754672949826,150.0,0.0001767,2]
[378023005,1754672952934,153.94,0.00017349,2]
[378023006,1754672953311,153.94,0.00017407,2]
[378023007,1754672953522,153.94,0.00017465,2]
[378023008,1754672953780,153.94,0.00017523,2]
[378023025,1754673032201,-282.6,0.00018038,2]
[378023026,1754673032210,-51.14091558,0.00018042,2]
[378023027,1754673032238,-2448.85908442,0.00018042,2]
[378023028,1754673032247,-250.0,0.00018046,2]
[378023029,1754673032257,-1200.0,0.00018209,2]
[378023030,1754673032266,-300.0,0.00018209,2]
[378023031,1754673032274,-300.0,0.00018209,2]
[378023032,1754673032284,-1345.68825,0.0001821,2]
[378023033,1754673032294,-1345.68825,0.0001821,2]
[378023034,1754673032304,-1345.68825,0.0001821,2]
[378023035,1754673032315,-1345.68825,0.0001821,2]
[378023036,1754673032326,-1345.68825,0.0001821,2]
[378023037,1754673032338,-1345.68825,0.0001821,2]
[378023038,1754673032349,-382.94,0.00018214,2]
[378023039,1754673032359,-267.46074303,0.00018282,2]
[378023040,1754673032369,-3682.31427691,0.00018282,2]
[378023041,1754673032503,-1517.12256753,0.00018282,2]
[378023042,1754673032513,-372.62114567,0.00018284,2]
[378023043,1754673032522,-6540.42764791,0.00018292,2]
[378023044,1754673032532,-637.57363162,0.00018292,2]
[378023045,1754673032541,-179.74693204,0.00018293,2]
[378023046,1754673032551,-162.21554683,0.00018293,2]
[378023047,1754673032561,-2661.02655433,0.00018293,2]
[378023049,1754673032570,-25884.1783,0.00018294,2]
[378023051,1754673032579,-1000.0,0.00018294,2]
[378023053,1754673032588,-4187.9158,0.00018294,2]
[378023054,1754673032598,-900.0,0.000183,6]
[378023055,1754673032608,-259.44,0.00018319,2]
[378023056,1754673032618,-222.0,0.00018319,2]
[378023057,1754673032627,-5391.81600769,0.00018337,2]
[378023058,1754673032636,-222.0,0.00018357,2]
[378023059,1754673032646,-6540.42764787,0.0001836,2]
[378023060,1754673032655,-2661.0265543,0.0001836,2]
[378023061,1754673032664,-500.0,0.00018373,2]
[378023063,1754673032674,-500.0,0.00018373,2]
[378023065,1754673032683,-350.0,0.00018376,2]
[378023067,1754673032692,-160.0,0.00018381,2]
[378023068,1754673032702,-500.0,0.00018381,2]
[378023069,1754673032711,-500.0,0.00018381,2]
[378023070,1754673032720,-500.0,0.00018381,2]
[378023074,1754673032730,-500.0,0.00018381,2]
[378023077,1754673032739,-500.0,0.00018381,2]
[378023079,1754673032748,-500.0,0.00018381,2]
[378023081,1754673032762,-151.0,0.00018381,2]
[378023082,1754673032771,-500.0,0.00018381,2]
[378023083,1754673032782,-502.25687419,0.00018381,2]
[378023085,1754673032791,-151.0,0.00018381,2]
[378023088,1754673032802,-253.09,0.00018382,2]
[378023089,1754673032811,-519.58141059,0.00018391,2]
[378023092,1754673032821,-500.0,0.00018391,2]
[378023094,1754673032832,-500.0,0.00018391,2]
[378023095,1754673032843,-389.73357814,0.00018391,2]
[378023097,1754673032852,-400.0,0.00018391,2]
[378023098,1754673032861,-400.0,0.00018391,2]
[378023099,1754673032870,-632.78,0.00018391,2]
[378023100,1754673032880,-400.0,0.00018392,2]
[378023101,1754673032889,-400.0,0.00018392,2]
[378023102,1754673032899,-400.0,0.00018392,2]